[Event "*** Titled Tuesday Blitz"]
[Site "Chess.com"]
[Date "2021.03.09"]
[Round "5"]
[White "stepakyedael"]
[Black "kinga2008"]
[Result "0-1"]
[WhiteElo "2280"]
[BlackElo "2091"]
[TimeControl "180+1"]
[EndTime "10:59:58 PST"]
[Termination "kinga2008 won on time"]

1. d4 {[%clk 0:03:00.9]} 1... Nf6 {[%clk 0:02:59.6]} 2. c4 {[%clk 0:03:00.6]}
2... g6 {[%clk 0:02:54.4]} 3. Nc3 {[%clk 0:02:59.7]} 3... Bg7 {[%clk 0:02:55.1]}
4. e4 {[%clk 0:02:59.6]} 4... d6 {[%clk 0:02:55.7]} 5. f3 {[%clk 0:02:59.9]}
5... O-O {[%clk 0:02:56.4]} 6. Be3 {[%clk 0:03:00.3]} 6... c5 {[%clk 0:02:57.1]}
7. d5 {[%clk 0:02:59.9]} 7... e6 {[%clk 0:02:57.3]} 8. Qd2 {[%clk 0:03:00.1]}
8... exd5 {[%clk 0:02:58.2]} 9. cxd5 {[%clk 0:03:00.5]} 9... a6 {[%clk
0:02:58.7]} 10. a4 {[%clk 0:03:00.6]} 10... Re8 {[%clk 0:02:57.6]} 11. Nge2
{[%clk 0:02:59.4]} 11... Nbd7 {[%clk 0:02:57.7]} 12. Ng3 {[%clk 0:02:56.3]}
12... h5 {[%clk 0:02:57.3]} 13. Be2 {[%clk 0:02:56.4]} 13... Qc7 {[%clk
0:02:56.5]} 14. O-O {[%clk 0:02:54.4]} 14... h4 {[%clk 0:02:54.7]} 15. Nh1
{[%clk 0:02:54.2]} 15... Nh7 {[%clk 0:02:54.9]} 16. Nf2 {[%clk 0:02:50.3]} 16...
Rb8 {[%clk 0:02:41.3]} 17. Rfc1 {[%clk 0:02:49]} 17... Qd8 {[%clk 0:02:20.8]}
18. a5 {[%clk 0:02:45]} 18... Qe7 {[%clk 0:02:20]} 19. h3 {[%clk 0:02:26.8]}
19... f5 {[%clk 0:02:17.9]} 20. Bd3 {[%clk 0:02:23.5]} 20... Ne5 {[%clk
0:02:13]} 21. Be2 {[%clk 0:02:17.1]} 21... Nf6 {[%clk 0:02:05.1]} 22. Bg5 {[%clk
0:02:12]} 22... Qf7 {[%clk 0:01:54.8]} 23. Bxh4 {[%clk 0:02:06.9]} 23... Bd7
{[%clk 0:01:54.8]} 24. f4 {[%clk 0:01:51.2]} 24... fxe4 {[%clk 0:01:54.7]} 25.
fxe5 {[%clk 0:01:45.1]} 25... Rxe5 {[%clk 0:01:55.6]} 26. Bg3 {[%clk 0:01:40.7]}
26... e3 {[%clk 0:01:55.6]} 27. Qe1 {[%clk 0:01:30.1]} 27... exf2+ {[%clk
0:01:56.5]} 28. Qxf2 {[%clk 0:01:29.9]} 28... Rf5 {[%clk 0:01:48.5]} 29. Bf3
{[%clk 0:01:23.4]} 29... Nh5 {[%clk 0:01:44.8]} 30. Bxd6 {[%clk 0:01:20]} 30...
Bd4 {[%clk 0:01:42.2]} 31. Bxb8 {[%clk 0:01:16.6]} 31... Bxf2+ {[%clk
0:01:38.1]} 32. Kxf2 {[%clk 0:01:16.5]} 32... Nf4 {[%clk 0:01:33.6]} 33. Bxf4
{[%clk 0:01:00.1]} 33... Rxf4 {[%clk 0:01:34.5]} 34. Ne2 {[%clk 0:00:48.9]}
34... Rb4 {[%clk 0:01:28.3]} 35. Rxc5 {[%clk 0:00:42.8]} 35... Rxb2 {[%clk
0:01:28.3]} 36. Rac1 {[%clk 0:00:36.6]} 36... Qf6 {[%clk 0:00:48.2]} 37. R5c2
{[%clk 0:00:29.6]} 37... Rxc2 {[%clk 0:00:43.7]} 38. Rxc2 {[%clk 0:00:29.2]}
38... Qa1 {[%clk 0:00:43.4]} 39. Rc7 {[%clk 0:00:25.9]} 39... Bb5 {[%clk
0:00:43.6]} 40. Nf4 {[%clk 0:00:16.4]} 40... Qxa5 {[%clk 0:00:43.2]} 41. Ne6
{[%clk 0:00:15.4]} 41... Qd2+ {[%clk 0:00:39.6]} 42. Kg3 {[%clk 0:00:14.5]}
42... g5 {[%clk 0:00:21.7]} 43. Rg7+ {[%clk 0:00:13.3]} 43... Kh8 {[%clk
0:00:21.5]} 44. Rxg5 {[%clk 0:00:13.4]} 44... a5 {[%clk 0:00:20.3]} 45. Rh5+
{[%clk 0:00:09.7]} 45... Kg8 {[%clk 0:00:19.4]} 46. Rg5+ {[%clk 0:00:09.8]}
46... Kf7 {[%clk 0:00:17.4]} 47. Bh5+ {[%clk 0:00:09.2]} 47... Kf6 {[%clk
0:00:15.2]} 48. Rg6+ {[%clk 0:00:09.3]} 48... Ke5 {[%clk 0:00:15]} 49. Rg5+
{[%clk 0:00:08.8]} 49... Kd6 {[%clk 0:00:15.3]} 50. Rg6 {[%clk 0:00:08.4]} 50...
Qe3+ {[%clk 0:00:13.6]} 51. Kh2 {[%clk 0:00:07.8]} 51... Qe5+ {[%clk 0:00:13.5]}
52. Kh1 {[%clk 0:00:06.3]} 52... Qa1+ {[%clk 0:00:13.3]} 53. Kh2 {[%clk
0:00:05.9]} 53... Kxd5 {[%clk 0:00:13.8]} 54. Nc7+ {[%clk 0:00:04.5]} 54... Ke5
{[%clk 0:00:13.8]} 55. Rg5+ {[%clk 0:00:04.4]} 55... Kf6 {[%clk 0:00:13.2]} 56.
Rxb5 {[%clk 0:00:03.8]} 56... Qe5+ {[%clk 0:00:12.5]} 57. Rxe5 {[%clk
0:00:03.2]} 57... Kxe5 {[%clk 0:00:13.4]} 58. Bd1 {[%clk 0:00:02.8]} 58... Kd4
{[%clk 0:00:13.1]} 59. Nb5+ {[%clk 0:00:02.8]} 59... Kc5 {[%clk 0:00:13.3]} 60.
Nc3 {[%clk 0:00:02.5]} 60... Kc4 {[%clk 0:00:13.5]} 61. Na4 {[%clk 0:00:02]}
61... Kd3 {[%clk 0:00:13.5]} 0-1

[Event "*** Titled Tuesday Blitz"]
[Site "Chess.com"]
[Date "2021.03.09"]
[Round "5"]
[White "MrrRefrao"]
[Black "Ajedrez_con_German"]
[Result "0-1"]
[WhiteElo "2396"]
[BlackElo "2546"]
[TimeControl "180+1"]
[EndTime "10:59:59 PST"]
[Termination "Ajedrez_con_German won on time"]

1. e4 {[%clk 0:02:59.8]} 1... e6 {[%clk 0:02:59.4]} 2. d4 {[%clk 0:02:59.1]}
2... d5 {[%clk 0:02:59.2]} 3. Nc3 {[%clk 0:02:58.7]} 3... dxe4 {[%clk 0:02:59]}
4. Nxe4 {[%clk 0:02:58]} 4... Nd7 {[%clk 0:02:59.7]} 5. Nf3 {[%clk 0:02:56.2]}
5... Ngf6 {[%clk 0:02:59.8]} 6. Bd3 {[%clk 0:02:54.3]} 6... Nxe4 {[%clk
0:02:59]} 7. Bxe4 {[%clk 0:02:55.2]} 7... Nf6 {[%clk 0:02:59.4]} 8. Bg5 {[%clk
0:02:53.6]} 8... Be7 {[%clk 0:02:59.2]} 9. Bd3 {[%clk 0:02:48.6]} 9... c5 {[%clk
0:02:58.9]} 10. dxc5 {[%clk 0:02:47.8]} 10... Qa5+ {[%clk 0:02:58.7]} 11. c3
{[%clk 0:02:41]} 11... Qxc5 {[%clk 0:02:58.6]} 12. O-O {[%clk 0:02:36.7]} 12...
O-O {[%clk 0:02:57.9]} 13. Qe2 {[%clk 0:02:33.5]} 13... Bd7 {[%clk 0:02:50.6]}
14. Ne5 {[%clk 0:02:16.4]} 14... Rad8 {[%clk 0:02:32.3]} 15. Nxd7 {[%clk
0:02:03.6]} 15... Rxd7 {[%clk 0:02:30.1]} 16. Be3 {[%clk 0:02:02]} 16... Qc7
{[%clk 0:02:29]} 17. Rad1 {[%clk 0:01:41.2]} 17... Rfd8 {[%clk 0:02:24.2]} 18.
Bc2 {[%clk 0:01:40.9]} 18... h6 {[%clk 0:02:13.1]} 19. Rxd7 {[%clk 0:01:37.4]}
19... Rxd7 {[%clk 0:02:13.2]} 20. Re1 {[%clk 0:01:31.2]} 20... b6 {[%clk
0:02:11.1]} 21. Qf3 {[%clk 0:01:28]} 21... Qb7 {[%clk 0:01:51.8]} 22. Qh3 {[%clk
0:01:06.5]} 22... Kf8 {[%clk 0:01:36.1]} 23. Bd4 {[%clk 0:01:01.8]} 23... Qd5
{[%clk 0:01:24.2]} 24. Bb3 {[%clk 0:00:54.7]} 24... Qg5 {[%clk 0:01:20]} 25. Qf3
{[%clk 0:00:49.3]} 25... Qd2 {[%clk 0:00:58.9]} 26. Rb1 {[%clk 0:00:22.9]} 26...
Nd5 {[%clk 0:00:25.1]} 27. g3 {[%clk 0:00:18.2]} 27... Bc5 {[%clk 0:00:18.4]}
28. Ba4 {[%clk 0:00:07.6]} 28... Rd8 {[%clk 0:00:13.7]} 29. Rd1 {[%clk
0:00:06.1]} 29... Qxb2 {[%clk 0:00:10.5]} 30. Bxc5+ {[%clk 0:00:05.6]} 30...
bxc5 {[%clk 0:00:11.4]} 31. c4 {[%clk 0:00:05.4]} 31... Qxa2 {[%clk 0:00:07.9]}
32. Bb3 {[%clk 0:00:04.6]} 32... Qa3 {[%clk 0:00:03]} 33. cxd5 {[%clk
0:00:04.8]} 33... exd5 {[%clk 0:00:03.9]} 34. Rxd5 {[%clk 0:00:04.2]} 34... Rxd5
{[%clk 0:00:03.6]} 35. Qxd5 {[%clk 0:00:05.1]} 35... Qc1+ {[%clk 0:00:03]} 36.
Kg2 {[%clk 0:00:04.5]} 36... Ke7 {[%clk 0:00:03.3]} 37. Qxf7+ {[%clk 0:00:03.9]}
37... Kd6 {[%clk 0:00:03.9]} 38. Qe6+ {[%clk 0:00:04]} 38... Kc7 {[%clk
0:00:04.4]} 39. Bd5 {[%clk 0:00:04.8]} 39... Qc3 {[%clk 0:00:03.2]} 40. Qc6+
{[%clk 0:00:04.6]} 40... Kd8 {[%clk 0:00:03.8]} 41. Be6 {[%clk 0:00:03.4]} 41...
Qd4 {[%clk 0:00:03.1]} 42. Bh3 {[%clk 0:00:01.2]} 42... Ke7 {[%clk 0:00:03.1]}
43. Qf3 {[%clk 0:00:02]} 43... c4 {[%clk 0:00:02.8]} 44. Bg4 {[%clk 0:00:02.9]}
44... c3 {[%clk 0:00:03.3]} 45. Bf5 {[%clk 0:00:03.5]} 45... Qd2 {[%clk
0:00:03.3]} 46. Be4 {[%clk 0:00:03.3]} 46... Kd6 {[%clk 0:00:03.4]} 47. Qf8+
{[%clk 0:00:02.9]} 47... Kc7 {[%clk 0:00:02.5]} 48. Qe7+ {[%clk 0:00:03.2]}
48... Kb6 {[%clk 0:00:02.9]} 49. Qb4+ {[%clk 0:00:03.4]} 49... Kc7 {[%clk
0:00:03.1]} 50. Qc4+ {[%clk 0:00:03.6]} 50... Kd6 {[%clk 0:00:03.4]} 51. Qc6+
{[%clk 0:00:02.8]} 51... Ke5 {[%clk 0:00:03.6]} 52. Bh7 {[%clk 0:00:03.1]} 52...
Qd4 {[%clk 0:00:02.5]} 53. Qe8+ {[%clk 0:00:02.7]} 53... Kd5 {[%clk 0:00:02.5]}
54. Qe2 {[%clk 0:00:03.3]} 54... Kc5 {[%clk 0:00:02.8]} 55. Bd3 {[%clk
0:00:03.3]} 55... Kb4 {[%clk 0:00:03.1]} 56. Qc2 {[%clk 0:00:02.9]} 56... a5
{[%clk 0:00:03.2]} 57. Qb1+ {[%clk 0:00:02.4]} 57... Kc5 {[%clk 0:00:03.3]} 58.
Qc2 {[%clk 0:00:02.4]} 58... Qb4 {[%clk 0:00:02.7]} 59. Qe2 {[%clk 0:00:02]}
59... Kb6 {[%clk 0:00:03]} 60. Qe3+ {[%clk 0:00:01.9]} 60... Qc5 {[%clk
0:00:03.2]} 61. Qe4 {[%clk 0:00:01.6]} 61... Kc7 {[%clk 0:00:03.4]} 0-1

[Event "*** Titled Tuesday Blitz"]
[Site "Chess.com"]
[Date "2021.03.09"]
[Round "5"]
[White "Moon_stone123"]
[Black "elextranjero00"]
[Result "0-1"]
[WhiteElo "2500"]
[BlackElo "2653"]
[TimeControl "180+1"]
[EndTime "11:00:00 PST"]
[Termination "elextranjero00 won by checkmate"]

1. Nf3 {[%clk 0:03:00.9]} 1... d5 {[%clk 0:02:59.2]} 2. g3 {[%clk 0:02:59.4]}
2... Nd7 {[%clk 0:02:58]} 3. d4 {[%clk 0:02:55.2]} 3... Nb6 {[%clk 0:02:57.7]}
4. Bg2 {[%clk 0:02:54.3]} 4... Bf5 {[%clk 0:02:56.9]} 5. O-O {[%clk 0:02:51.8]}
5... e6 {[%clk 0:02:57.2]} 6. Nbd2 {[%clk 0:02:31]} 6... Nf6 {[%clk 0:02:54]} 7.
Nh4 {[%clk 0:02:25.5]} 7... Bg4 {[%clk 0:02:49.6]} 8. c3 {[%clk 0:02:21.7]} 8...
Bd6 {[%clk 0:02:27]} 9. Qe1 {[%clk 0:02:19.9]} 9... O-O {[%clk 0:02:22.4]} 10.
e4 {[%clk 0:02:18.7]} 10... Be7 {[%clk 0:02:02.4]} 11. Nhf3 {[%clk 0:01:51.2]}
11... Bh5 {[%clk 0:01:50.1]} 12. Ne5 {[%clk 0:01:50.4]} 12... Nfd7 {[%clk
0:01:45]} 13. exd5 {[%clk 0:01:37.2]} 13... exd5 {[%clk 0:01:38.2]} 14. Ndf3
{[%clk 0:01:33.2]} 14... Bd6 {[%clk 0:01:26.4]} 15. Bf4 {[%clk 0:01:21.9]} 15...
Re8 {[%clk 0:01:10.1]} 16. Qc1 {[%clk 0:01:21.3]} 16... Bxf3 {[%clk 0:01:00.4]}
17. Nxf3 {[%clk 0:01:17.8]} 17... Bxf4 {[%clk 0:00:58.7]} 18. Qxf4 {[%clk
0:01:18.7]} 18... c6 {[%clk 0:00:54.9]} 19. h4 {[%clk 0:01:18]} 19... Qf6 {[%clk
0:00:47.4]} 20. Qg4 {[%clk 0:01:15.6]} 20... Re4 {[%clk 0:00:43.6]} 21. Qh3
{[%clk 0:01:12.4]} 21... h6 {[%clk 0:00:38.2]} 22. Ne5 {[%clk 0:01:05.5]} 22...
Nxe5 {[%clk 0:00:25.8]} 23. Bxe4 {[%clk 0:01:05.4]} 23... Nec4 {[%clk
0:00:26.4]} 24. Bg2 {[%clk 0:00:59.4]} 24... Nxb2 {[%clk 0:00:26.5]} 25. a4
{[%clk 0:00:59.7]} 25... N2xa4 {[%clk 0:00:19.2]} 26. Rac1 {[%clk 0:00:51.2]}
26... Nb2 {[%clk 0:00:17.3]} 27. Rc2 {[%clk 0:00:42.4]} 27... N2c4 {[%clk
0:00:17]} 28. Re1 {[%clk 0:00:42.9]} 28... a5 {[%clk 0:00:16.7]} 29. Rce2 {[%clk
0:00:42.7]} 29... Nd6 {[%clk 0:00:14.2]} 30. g4 {[%clk 0:00:35.3]} 30... Qf4
{[%clk 0:00:12.3]} 31. g5 {[%clk 0:00:33.3]} 31... hxg5 {[%clk 0:00:10.5]} 32.
hxg5 {[%clk 0:00:34.2]} 32... Qxg5 {[%clk 0:00:10.8]} 33. Re5 {[%clk 0:00:34.1]}
33... Qf6 {[%clk 0:00:10.5]} 34. Rh5 {[%clk 0:00:33.9]} 34... g6 {[%clk
0:00:10.5]} 35. Rhe5 {[%clk 0:00:28.8]} 35... a4 {[%clk 0:00:10.2]} 36. f4
{[%clk 0:00:28.4]} 36... a3 {[%clk 0:00:10.4]} 37. f5 {[%clk 0:00:26.8]} 37...
a2 {[%clk 0:00:10.6]} 38. fxg6 {[%clk 0:00:18.9]} 38... Qxg6 {[%clk 0:00:09.8]}
39. Ra1 {[%clk 0:00:11.9]} 39... Nbc4 {[%clk 0:00:09.6]} 40. Qh4 {[%clk
0:00:10.9]} 40... Nxe5 {[%clk 0:00:08.4]} 41. dxe5 {[%clk 0:00:10.8]} 41... Nf5
{[%clk 0:00:08.4]} 42. Qf4 {[%clk 0:00:10]} 42... Ne7 {[%clk 0:00:06]} 43. Kf2
{[%clk 0:00:10]} 43... Qf5 {[%clk 0:00:05.4]} 44. Ke3 {[%clk 0:00:08.7]} 44...
Qxf4+ {[%clk 0:00:05.4]} 45. Kxf4 {[%clk 0:00:09.6]} 45... Ra3 {[%clk
0:00:05.2]} 46. Kg5 {[%clk 0:00:08.5]} 46... Rxc3 {[%clk 0:00:04.1]} 47. Rxa2
{[%clk 0:00:08.5]} 47... Rg3+ {[%clk 0:00:04]} 48. Kf6 {[%clk 0:00:08.5]} 48...
Ng6 {[%clk 0:00:03.8]} 49. e6 {[%clk 0:00:05.6]} 49... fxe6 {[%clk 0:00:03.4]}
50. Ra8+ {[%clk 0:00:05.3]} 50... Kh7 {[%clk 0:00:03.6]} 51. Rb8 {[%clk
0:00:01.6]} 51... Kh6 {[%clk 0:00:03.8]} 52. Rxb7 {[%clk 0:00:02.3]} 52... Nf4
{[%clk 0:00:03.9]} 53. Rf7 {[%clk 0:00:03.2]} 53... Rg6+ {[%clk 0:00:02.9]} 54.
Ke7 {[%clk 0:00:03.3]} 54... Nxg2 {[%clk 0:00:03.8]} 55. Ke8 {[%clk 0:00:02.7]}
55... e5 {[%clk 0:00:03.4]} 56. Rc7 {[%clk 0:00:02.8]} 56... Kg5 {[%clk
0:00:03.7]} 57. Kd8 {[%clk 0:00:03.7]} 57... Kf4 {[%clk 0:00:03.8]} 58. Kc8
{[%clk 0:00:04.6]} 58... e4 {[%clk 0:00:04.1]} 59. Kb8 {[%clk 0:00:05.5]} 59...
Ke3 {[%clk 0:00:04.2]} 60. Kb7 {[%clk 0:00:06.4]} 60... Nf4 {[%clk 0:00:04.6]}
61. Kb8 {[%clk 0:00:07.3]} 61... d4 {[%clk 0:00:04.8]} 62. Kb7 {[%clk
0:00:07.4]} 62... Re6 {[%clk 0:00:05.7]} 63. Kb8 {[%clk 0:00:08.2]} 63... d3
{[%clk 0:00:06.3]} 64. Kb7 {[%clk 0:00:08.4]} 64... d2 {[%clk 0:00:07.2]} 65.
Kb8 {[%clk 0:00:08.4]} 65... Nd3 {[%clk 0:00:07.7]} 66. Kb7 {[%clk 0:00:08.4]}
66... d1=Q {[%clk 0:00:08.6]} 67. Kb8 {[%clk 0:00:08.7]} 67... Qb3+ {[%clk
0:00:08.8]} 68. Kc8 {[%clk 0:00:08.5]} 68... Re8+ {[%clk 0:00:08.5]} 69. Kd7
{[%clk 0:00:08.5]} 69... Qe6# {[%clk 0:00:09.1]} 0-1

[Event "*** Titled Tuesday Blitz"]
[Site "Chess.com"]
[Date "2021.03.09"]
[Round "5"]
[White "Vasily85"]
[Black "suneebaker"]
[Result "1-0"]
[WhiteElo "2419"]
[BlackElo "2217"]
[TimeControl "180+1"]
[EndTime "11:00:00 PST"]
[Termination "Vasily85 won on time"]

1. d4 {[%clk 0:03:00.9]} 1... Nf6 {[%clk 0:02:59.2]} 2. Bg5 {[%clk 0:03:00.5]}
2... c6 {[%clk 0:02:55.6]} 3. Nc3 {[%clk 0:02:52.3]} 3... d5 {[%clk 0:02:52.6]}
4. e3 {[%clk 0:02:47]} 4... Bf5 {[%clk 0:02:51.1]} 5. Bd3 {[%clk 0:02:47.1]}
5... Bg6 {[%clk 0:02:38.5]} 6. Qe2 {[%clk 0:02:37.1]} 6... Nbd7 {[%clk
0:02:37.5]} 7. O-O-O {[%clk 0:02:31.1]} 7... Qa5 {[%clk 0:02:36.1]} 8. Kb1
{[%clk 0:02:30.1]} 8... b5 {[%clk 0:02:32.4]} 9. Qd2 {[%clk 0:02:05.7]} 9... b4
{[%clk 0:02:22.7]} 10. Nce2 {[%clk 0:02:05.1]} 10... e6 {[%clk 0:02:21.3]} 11.
Nf3 {[%clk 0:01:55.2]} 11... Rb8 {[%clk 0:02:17.7]} 12. Ne5 {[%clk 0:01:49.9]}
12... Nxe5 {[%clk 0:02:05.3]} 13. dxe5 {[%clk 0:01:50.8]} 13... Nd7 {[%clk
0:02:05.1]} 14. Bxg6 {[%clk 0:01:38.2]} 14... hxg6 {[%clk 0:02:03.8]} 15. e4
{[%clk 0:01:38.8]} 15... Nc5 {[%clk 0:01:57.1]} 16. exd5 {[%clk 0:01:35.6]}
16... cxd5 {[%clk 0:01:56.1]} 17. Nd4 {[%clk 0:01:29.9]} 17... Ne4 {[%clk
0:01:54.2]} 18. Qe3 {[%clk 0:01:25.3]} 18... Bc5 {[%clk 0:01:41.5]} 19. Ka1
{[%clk 0:01:02.7]} 19... O-O {[%clk 0:01:21.7]} 20. f3 {[%clk 0:01:00.9]} 20...
Nc3 {[%clk 0:01:10.4]} 21. bxc3 {[%clk 0:00:59.9]} 21... bxc3 {[%clk 0:01:10.3]}
22. Nb3 {[%clk 0:00:42.5]} 22... Rxb3 {[%clk 0:00:59.6]} 23. cxb3 {[%clk
0:00:20.3]} 23... Bxe3 {[%clk 0:00:59.1]} 24. Bxe3 {[%clk 0:00:21.2]} 24... c2
{[%clk 0:00:57.2]} 25. Rd3 {[%clk 0:00:21.7]} 25... Rc8 {[%clk 0:00:54.8]} 26.
Rc1 {[%clk 0:00:21.1]} 26... Rc3 {[%clk 0:00:37.5]} 27. Bd2 {[%clk 0:00:18.6]}
27... d4 {[%clk 0:00:21.5]} 28. Bxc3 {[%clk 0:00:15.3]} 28... dxc3 {[%clk
0:00:21.6]} 29. Rxc2 {[%clk 0:00:15.7]} 29... Qxe5 {[%clk 0:00:21.5]} 30. Rdxc3
{[%clk 0:00:10.3]} 30... g5 {[%clk 0:00:21]} 31. b4 {[%clk 0:00:09.9]} 31...
Qe1+ {[%clk 0:00:19.9]} 32. Kb2 {[%clk 0:00:09.7]} 32... Kh7 {[%clk 0:00:20]}
33. a4 {[%clk 0:00:09.2]} 33... Kg6 {[%clk 0:00:19.7]} 34. b5 {[%clk 0:00:08.9]}
34... Qe5 {[%clk 0:00:19.2]} 35. h3 {[%clk 0:00:09]} 35... Qd4 {[%clk
0:00:19.2]} 36. Ka3 {[%clk 0:00:09.1]} 36... Qd6+ {[%clk 0:00:16.5]} 37. Kb3
{[%clk 0:00:09.2]} 37... Qd5+ {[%clk 0:00:16.3]} 38. Kb4 {[%clk 0:00:09.7]}
38... Qd4+ {[%clk 0:00:15.3]} 39. Rc4 {[%clk 0:00:10.1]} 39... Qd1 {[%clk
0:00:14.6]} 40. a5 {[%clk 0:00:09.6]} 40... Qb1+ {[%clk 0:00:13.9]} 41. Kc5
{[%clk 0:00:10]} 41... Qa1 {[%clk 0:00:12.5]} 42. a6 {[%clk 0:00:06.2]} 42...
Qa3+ {[%clk 0:00:11.4]} 43. Kc6 {[%clk 0:00:05.9]} 43... Qa5 {[%clk 0:00:11.3]}
44. Kc5 {[%clk 0:00:04.1]} 44... Qb6+ {[%clk 0:00:11]} 45. Kb4 {[%clk
0:00:04.4]} 45... Qe3 {[%clk 0:00:10.5]} 46. Rc7 {[%clk 0:00:03.6]} 46... f5
{[%clk 0:00:08.9]} 47. R7c6 {[%clk 0:00:03.2]} 47... g4 {[%clk 0:00:07.6]} 48.
hxg4 {[%clk 0:00:02]} 48... fxg4 {[%clk 0:00:07.7]} 49. fxg4 {[%clk 0:00:02]}
49... Kg5 {[%clk 0:00:08.1]} 50. b6 {[%clk 0:00:02.1]} 50... axb6 {[%clk
0:00:06.8]} 51. a7 {[%clk 0:00:02.2]} 51... Qe4+ {[%clk 0:00:06.8]} 52. Kb5
{[%clk 0:00:02.2]} 52... Qe5+ {[%clk 0:00:06.7]} 53. Kxb6 {[%clk 0:00:02.4]}
53... Qe3+ {[%clk 0:00:05.3]} 54. Kb7 {[%clk 0:00:02.9]} 54... Qb3+ {[%clk
0:00:05.2]} 55. Rb6 {[%clk 0:00:03.2]} 55... Qd5+ {[%clk 0:00:05.3]} 56. Rcc6
{[%clk 0:00:03.4]} 56... Qd7+ {[%clk 0:00:05.7]} 57. Rc7 {[%clk 0:00:04]} 57...
Qd5+ {[%clk 0:00:05.8]} 58. Kb8 {[%clk 0:00:04.5]} 58... Qd8+ {[%clk 0:00:05.1]}
59. Kb7 {[%clk 0:00:05.2]} 59... Qd5+ {[%clk 0:00:04.9]} 60. Rbc6 {[%clk
0:00:05.7]} 60... Qb5+ {[%clk 0:00:04.9]} 61. Kc8 {[%clk 0:00:06.3]} 61... Kxg4
{[%clk 0:00:01.9]} 62. Rxg7+ {[%clk 0:00:06.5]} 62... Kf4 {[%clk 0:00:01.3]} 63.
Rcc7 {[%clk 0:00:06.1]} 1-0

[Event "*** Titled Tuesday Blitz"]
[Site "Chess.com"]
[Date "2021.03.09"]
[Round "5"]
[White "Love_craft"]
[Black "Arvids_Andrejevs"]
[Result "1/2-1/2"]
[WhiteElo "2544"]
[BlackElo "2413"]
[TimeControl "180+1"]
[EndTime "11:00:01 PST"]
[Termination "Game drawn - insufficient material"]

1. Nf3 {[%clk 0:03:00.9]} 1... d5 {[%clk 0:02:57.5]} 2. g3 {[%clk 0:03:00.9]}
2... e6 {[%clk 0:02:47]} 3. Bg2 {[%clk 0:03:00.8]} 3... Nf6 {[%clk 0:02:47.6]}
4. O-O {[%clk 0:03:01.6]} 4... Be7 {[%clk 0:02:47.5]} 5. d3 {[%clk 0:03:02.5]}
5... O-O {[%clk 0:02:47.8]} 6. Nbd2 {[%clk 0:03:03.4]} 6... c5 {[%clk 0:02:48]}
7. e4 {[%clk 0:03:04.3]} 7... Nc6 {[%clk 0:02:48.4]} 8. e5 {[%clk 0:03:04.8]}
8... Nd7 {[%clk 0:02:48.4]} 9. Re1 {[%clk 0:03:05.7]} 9... Qc7 {[%clk
0:02:48.5]} 10. Qe2 {[%clk 0:03:05.9]} 10... b5 {[%clk 0:02:48.3]} 11. Nf1
{[%clk 0:03:04.6]} 11... a5 {[%clk 0:02:48.4]} 12. h4 {[%clk 0:03:04.8]} 12...
c4 {[%clk 0:02:48.3]} 13. d4 {[%clk 0:03:04.2]} 13... b4 {[%clk 0:02:48.5]} 14.
Bg5 {[%clk 0:02:59.5]} 14... c3 {[%clk 0:02:42.9]} 15. b3 {[%clk 0:02:52.2]}
15... a4 {[%clk 0:02:39.4]} 16. N1h2 {[%clk 0:02:40.9]} 16... Bb7 {[%clk
0:02:27.9]} 17. Ng4 {[%clk 0:02:31.3]} 17... axb3 {[%clk 0:02:27.6]} 18. axb3
{[%clk 0:02:32.2]} 18... Rxa1 {[%clk 0:02:26.9]} 19. Rxa1 {[%clk 0:02:33.1]}
19... Ra8 {[%clk 0:02:26.3]} 20. Rxa8+ {[%clk 0:02:32]} 20... Bxa8 {[%clk
0:02:27.2]} 21. Qa6 {[%clk 0:02:10.2]} 21... Qb7 {[%clk 0:02:14]} 22. Qa4 {[%clk
0:02:00.9]} 22... Bxg5 {[%clk 0:01:56.2]} 23. hxg5 {[%clk 0:02:01.8]} 23... Qa7
{[%clk 0:01:47.1]} 24. Qxa7 {[%clk 0:01:24]} 24... Nxa7 {[%clk 0:01:46.7]} 25.
Bf1 {[%clk 0:01:22.8]} 25... Bc6 {[%clk 0:01:39.8]} 26. Ne1 {[%clk 0:01:04.8]}
26... Bb5 {[%clk 0:01:38.2]} 27. Bd3 {[%clk 0:00:30.1]} 27... Bxd3 {[%clk
0:01:33.3]} 28. Nxd3 {[%clk 0:00:31]} 28... Nc6 {[%clk 0:01:33.2]} 29. f4 {[%clk
0:00:31.2]} 29... Nxd4 {[%clk 0:01:29.6]} 30. Nxb4 {[%clk 0:00:30.9]} 30... Nc5
{[%clk 0:01:28.7]} 31. Ne3 {[%clk 0:00:26.3]} 31... Ndxb3 {[%clk 0:01:16.1]} 32.
cxb3 {[%clk 0:00:25.7]} 32... d4 {[%clk 0:01:16.6]} 33. Nec2 {[%clk 0:00:17.4]}
33... Nxb3 {[%clk 0:01:15.2]} 34. Nd3 {[%clk 0:00:16.1]} 34... f5 {[%clk
0:01:08.6]} 35. gxf6 {[%clk 0:00:12.3]} 35... gxf6 {[%clk 0:01:09.5]} 36. Kf2
{[%clk 0:00:10.5]} 36... f5 {[%clk 0:01:08.1]} 37. Kf3 {[%clk 0:00:09.3]} 37...
Kf8 {[%clk 0:01:07.8]} 38. Ke2 {[%clk 0:00:07.2]} 38... Ke7 {[%clk 0:01:07.7]}
39. Ndb4 {[%clk 0:00:05.8]} 39... Nc1+ {[%clk 0:01:05.5]} 40. Kd1 {[%clk
0:00:05.3]} 40... Nb3 {[%clk 0:01:04.2]} 41. Ke2 {[%clk 0:00:03.5]} 41... Kd7
{[%clk 0:01:04.3]} 42. Kd3 {[%clk 0:00:02.6]} 42... Nc5+ {[%clk 0:01:00.9]} 43.
Kxd4 {[%clk 0:00:02.9]} 43... Ne4 {[%clk 0:01:01.8]} 44. g4 {[%clk 0:00:03]}
44... Ng3 {[%clk 0:00:57.6]} 45. gxf5 {[%clk 0:00:03.9]} 45... exf5 {[%clk
0:00:58.3]} 46. Kxc3 {[%clk 0:00:04]} 46... Ne2+ {[%clk 0:00:58.7]} 47. Kc4
{[%clk 0:00:03.2]} 47... Nxf4 {[%clk 0:00:59.6]} 48. Kc5 {[%clk 0:00:03.4]}
48... Ke6 {[%clk 0:01:00]} 49. Nc6 {[%clk 0:00:03.1]} 49... h5 {[%clk
0:00:48.5]} 50. N2d4+ {[%clk 0:00:04]} 50... Kd7 {[%clk 0:00:44.9]} 51. Nb4
{[%clk 0:00:04.8]} 51... h4 {[%clk 0:00:44]} 52. Nd5 {[%clk 0:00:05.1]} 52...
Nd3+ {[%clk 0:00:38.5]} 53. Kb5 {[%clk 0:00:05]} 53... Nxe5 {[%clk 0:00:35.2]}
54. Nxf5 {[%clk 0:00:05.3]} 54... h3 {[%clk 0:00:35.4]} 55. Ng3 {[%clk
0:00:05.3]} 55... Ke6 {[%clk 0:00:35.7]} 56. Nf4+ {[%clk 0:00:05.5]} 56... Kf6
{[%clk 0:00:36.1]} 57. Nxh3 {[%clk 0:00:06.4]} 57... Kg6 {[%clk 0:00:35.8]} 58.
Kc5 {[%clk 0:00:06.2]} 58... Nd3+ {[%clk 0:00:35.9]} 59. Kd4 {[%clk 0:00:06.2]}
59... Nb4 {[%clk 0:00:36.1]} 60. Ke4 {[%clk 0:00:06.3]} 60... Nc6 {[%clk
0:00:36.3]} 61. Kf4 {[%clk 0:00:06.5]} 61... Ne7 {[%clk 0:00:36.4]} 62. Kg4
{[%clk 0:00:06.6]} 62... Kf6 {[%clk 0:00:36.7]} 63. Nf4 {[%clk 0:00:06.9]} 63...
Ke5 {[%clk 0:00:36.4]} 64. Ngh5 {[%clk 0:00:07]} 64... Kd6 {[%clk 0:00:36.5]}
65. Kg5 {[%clk 0:00:07.8]} 65... Nd5 {[%clk 0:00:36.6]} 66. Ng6 {[%clk
0:00:07.9]} 66... Ne7 {[%clk 0:00:36.1]} 67. Nf8 {[%clk 0:00:07.7]} 67... Nd5
{[%clk 0:00:36.2]} 68. Ng7 {[%clk 0:00:07.7]} 68... Ne7 {[%clk 0:00:36.2]} 69.
Ne8+ {[%clk 0:00:05.4]} 69... Ke5 {[%clk 0:00:35.3]} 70. Nf6 {[%clk 0:00:06.3]}
70... Nd5 {[%clk 0:00:35.1]} 71. Ng6+ {[%clk 0:00:06.4]} 71... Kd6 {[%clk
0:00:33.2]} 72. Ne4+ {[%clk 0:00:06.8]} 72... Kc6 {[%clk 0:00:32.9]} 73. Kf5
{[%clk 0:00:07.2]} 73... Ne3+ {[%clk 0:00:32.7]} 74. Ke6 {[%clk 0:00:07.2]}
74... Nd5 {[%clk 0:00:32.7]} 75. Ne5+ {[%clk 0:00:07]} 75... Kb5 {[%clk
0:00:31]} 76. Kxd5 {[%clk 0:00:06.9]} 1/2-1/2